{"text_format":"3","workbook":"xlsx","n_sheets":1,"sheets":["Планировчик на празничен бюджет"],"not_rendered":{"defined_names":1},"read":"whole","date_system":"1900"}

{"sheet":"Планировчик на празничен бюджет","index":0,"n_rows":37,"n_cols":12,"rows_kept":37,"merged":[[1,1,7,4],[9,1,9,4],[9,8,9,11],[19,1,19,4],[19,8,19,11],[30,1,30,4],[30,8,30,11]]}
[" "]
[null,"Планировчик на празничен бюджет"]
[]
[{"$nulls":8},"ПРАЗНИЧЕН БЮДЖЕТ",null,{"$f":"SUM(Подаръци[Бюджет],Опаковане[Бюджет],(Пътувания[Бюджет],(Храна[Бюджет],(Развлечения[Бюджет],Разни[Бюджет]))))","v":{"v":750,"d":"750.00 лв."}}]
[{"$nulls":8},"ДЕЙСТВИТЕЛНО ПОХАРЧЕНИ",null,{"$f":"SUM((Подаръци[Действителен],(Опаковане[Действителни],(Пътувания[Действителен],(Храна[Действителен],(Развлечения[Действителни],(Разни[Действителен])))))))","v":{"v":820,"d":"820.00 лв."}}]
[]
[{"$nulls":8},"РАЗЛИКА (над/под бюджета)",null,{"$f":"SUM(K4-K5)","v":{"v":-70,"d":"-70.00 лв."}}]
[]
[]
[null,"Подаръци",{"$nulls":6},"Храна за празника"]
[null,"Перо","Бюджет","Действителен","Разлика",{"$nulls":3},"Перо","Бюджет","Действителен","Разлика"]
[null,"Семейни",{"v":500,"d":"500.00 лв."},{"v":495,"d":"495.00 лв."},{"$f":"Подаръци[[#This Row],[Бюджет]]-Подаръци[[#This Row],[Действителен]]","v":{"v":5,"d":"5.00 лв."}},{"$nulls":3},"Хранителни стоки",null,null,{"$f":"Храна[[#This Row],[Бюджет]]-Храна[[#This Row],[Действителен]]","v":{"v":0,"d":"0.00 лв."}}]
[null,"Приятели",{"v":250,"d":"250.00 лв."},{"v":325,"d":"325.00 лв."},{"$f":"Подаръци[[#This Row],[Бюджет]]-Подаръци[[#This Row],[Действителен]]","v":{"v":-75,"d":"-75.00 лв."}},{"$nulls":3},"Пиене",null,null,{"$f":"Храна[[#This Row],[Бюджет]]-Храна[[#This Row],[Действителен]]","v":{"v":0,"d":"0.00 лв."}}]
[null,"Колеги",null,null,{"$f":"Подаръци[[#This Row],[Бюджет]]-Подаръци[[#This Row],[Действителен]]","v":{"v":0,"d":"0.00 лв."}},{"$nulls":3},"Украса",null,null,{"$f":"Храна[[#This Row],[Бюджет]]-Храна[[#This Row],[Действителен]]","v":{"v":0,"d":"0.00 лв."}}]
[null,"Учители, бавачки, детегледачки и др.",null,null,{"$f":"Подаръци[[#This Row],[Бюджет]]-Подаръци[[#This Row],[Действителен]]","v":{"v":0,"d":"0.00 лв."}},{"$nulls":3},"Други (натиснете Tab в последната колона от този ред, за да добавите ред)",null,null,{"$f":"Храна[[#This Row],[Бюджет]]-Храна[[#This Row],[Действителен]]","v":{"v":0,"d":"0.00 лв."}}]
[null,"Благотворителни дарения",null,null,{"$f":"Подаръци[[#This Row],[Бюджет]]-Подаръци[[#This Row],[Действителен]]","v":{"v":0,"d":"0.00 лв."}},{"$nulls":3},"Общо",{"$f":"SUBTOTAL(109,Храна[Бюджет])","v":{"v":0,"d":"0.00 лв."}},{"$f":"SUBTOTAL(109,Храна[Действителен])","v":{"v":0,"d":"0.00 лв."}},{"$f":"SUBTOTAL(109,Храна[Разлика])","v":{"v":0,"d":"0.00 лв."}}]
[null,"Други (натиснете Tab в последната колона от този ред, за да добавите ред)",null,null,{"$f":"Подаръци[[#This Row],[Бюджет]]-Подаръци[[#This Row],[Действителен]]","v":{"v":0,"d":"0.00 лв."}}]
[null,"Общо",{"$f":"SUBTOTAL(109,Подаръци[Бюджет])","v":{"v":750,"d":"750.00 лв."}},{"$f":"SUBTOTAL(109,Подаръци[Действителен])","v":{"v":820,"d":"820.00 лв."}},{"$f":"SUBTOTAL(109,Подаръци[Разлика])","v":{"v":-70,"d":"-70.00 лв."}}]
[]
[null,"Опаковане",{"$nulls":6},"Развлечения"]
[null,"Перо","Бюджет","Действителни","Разлика",{"$nulls":3},"Перо","Бюджет","Действителни","Разлика"]
[null,"Опаковка за подарък",null,null,{"$f":"Опаковане[[#This Row],[Бюджет]]-Опаковане[[#This Row],[Действителни]]","v":{"v":0,"d":"0.00 лв."}},{"$nulls":3},"Помощ за партито (барман, доставчик, чистачи и др.)",null,null,{"$f":"Развлечения[[#This Row],[Бюджет]]-Развлечения[[#This Row],[Действителни]]","v":{"v":0,"d":"0.00 лв."}}]
[null,"Етикети",null,null,{"$f":"Опаковане[[#This Row],[Бюджет]]-Опаковане[[#This Row],[Действителни]]","v":{"v":0,"d":"0.00 лв."}},{"$nulls":3},"Украса",null,null,{"$f":"Развлечения[[#This Row],[Бюджет]]-Развлечения[[#This Row],[Действителни]]","v":{"v":0,"d":"0.00 лв."}}]
[null,"Консумативи (панделка, тиксо и др.)",null,null,{"$f":"Опаковане[[#This Row],[Бюджет]]-Опаковане[[#This Row],[Действителни]]","v":{"v":0,"d":"0.00 лв."}},{"$nulls":3},"Храна и напитки",null,null,{"$f":"Развлечения[[#This Row],[Бюджет]]-Развлечения[[#This Row],[Действителни]]","v":{"v":0,"d":"0.00 лв."}}]
[null,"Кутии",null,null,{"$f":"Опаковане[[#This Row],[Бюджет]]-Опаковане[[#This Row],[Действителни]]","v":{"v":0,"d":"0.00 лв."}},{"$nulls":3},"Облекло",null,null,{"$f":"Развлечения[[#This Row],[Бюджет]]-Развлечения[[#This Row],[Действителни]]","v":{"v":0,"d":"0.00 лв."}}]
[null,"Пощенски разходи",null,null,{"$f":"Опаковане[[#This Row],[Бюджет]]-Опаковане[[#This Row],[Действителни]]","v":{"v":0,"d":"0.00 лв."}},{"$nulls":3},"Билети",null,null,{"$f":"Развлечения[[#This Row],[Бюджет]]-Развлечения[[#This Row],[Действителни]]","v":{"v":0,"d":"0.00 лв."}}]
[null,"Други (натиснете Tab в последната колона от този ред, за да добавите ред)",null,null,{"$f":"Опаковане[[#This Row],[Бюджет]]-Опаковане[[#This Row],[Действителни]]","v":{"v":0,"d":"0.00 лв."}},{"$nulls":3},"Вечери в заведение",null,null,{"$f":"Развлечения[[#This Row],[Бюджет]]-Развлечения[[#This Row],[Действителни]]","v":{"v":0,"d":"0.00 лв."}}]
[null,"Общо",{"$f":"SUBTOTAL(109,Опаковане[Бюджет])","v":{"v":0,"d":"0.00 лв."}},{"$f":"SUBTOTAL(109,Опаковане[Действителни])","v":{"v":0,"d":"0.00 лв."}},{"$f":"SUBTOTAL(109,Опаковане[Разлика])","v":{"v":0,"d":"0.00 лв."}},{"$nulls":3},"Други (натиснете Tab в последната колона от този ред, за да добавите ред)",null,null,{"$f":"Развлечения[[#This Row],[Бюджет]]-Развлечения[[#This Row],[Действителни]]","v":{"v":0,"d":"0.00 лв."}}]
[{"$nulls":8},"Общо",{"$f":"SUBTOTAL(109,Развлечения[Бюджет])","v":{"v":0,"d":"0.00 лв."}},{"$f":"SUBTOTAL(109,Развлечения[Действителни])","v":{"v":0,"d":"0.00 лв."}},{"$f":"SUBTOTAL(109,Развлечения[Разлика])","v":{"v":0,"d":"0.00 лв."}}]
[]
[null,"Пътувания",{"$nulls":6},"Разни"]
[null,"Перо","Бюджет","Действителен","Разлика",{"$nulls":3},"Перо","Бюджет","Действителен","Разлика"]
[null,"Самолетни билети",null,null,{"$f":"Пътувания[[#This Row],[Бюджет]]-Пътувания[[#This Row],[Действителен]]","v":{"v":0,"d":"0.00 лв."}},{"$nulls":3},"Снимки от празника",null,null,{"$f":"Разни[[#This Row],[Бюджет]]-Разни[[#This Row],[Действителен]]","v":{"v":0,"d":"0.00 лв."}}]
[null,"Хотел",null,null,{"$f":"Пътувания[[#This Row],[Бюджет]]-Пътувания[[#This Row],[Действителен]]","v":{"v":0,"d":"0.00 лв."}},{"$nulls":3},"Газ ",null,null,{"$f":"Разни[[#This Row],[Бюджет]]-Разни[[#This Row],[Действителен]]","v":{"v":0,"d":"0.00 лв."}}]
[null,"Транспорт",null,null,{"$f":"Пътувания[[#This Row],[Бюджет]]-Пътувания[[#This Row],[Действителен]]","v":{"v":0,"d":"0.00 лв."}},{"$nulls":3},"Други (натиснете Tab в последната колона от този ред, за да добавите ред)",null,null,{"$f":"Разни[[#This Row],[Бюджет]]-Разни[[#This Row],[Действителен]]","v":{"v":0,"d":"0.00 лв."}}]
[null,"Други (натиснете Tab в последната колона от този ред, за да добавите ред)",null,null,{"$f":"Пътувания[[#This Row],[Бюджет]]-Пътувания[[#This Row],[Действителен]]","v":{"v":0,"d":"0.00 лв."}},{"$nulls":3},"Общо",{"$f":"SUBTOTAL(109,Разни[Бюджет])","v":{"v":0,"d":"0.00 лв."}},{"$f":"SUBTOTAL(109,Разни[Действителен])","v":{"v":0,"d":"0.00 лв."}},{"$f":"SUBTOTAL(109,Разни[Разлика])","v":{"v":0,"d":"0.00 лв."}}]
[null,"Общо",{"$f":"SUBTOTAL(109,Пътувания[Бюджет])","v":{"v":0,"d":"0.00 лв."}},{"$f":"SUBTOTAL(109,Пътувания[Действителен])","v":{"v":0,"d":"0.00 лв."}},{"$f":"SUBTOTAL(109,Пътувания[Разлика])","v":{"v":0,"d":"0.00 лв."}}]